[Event "4NCL Div 1 2024-25"]
[Site "England"]
[Date "2025.02.15"]
[Round "5.13"]
[White "Sowray, Peter J"]
[Black "Price, Gwilym"]
[Result "1-0"]
[Annotator "TA"]
[ECO "E62"]
[WhiteElo "2205"]
[BlackElo "2223"]
[PlyCount "117"]
[EventDate "2024.11.23"]
[EventType "team-tourn"]
[EventCountry "ENG"]
[SourceTitle "playchess.com"]
[Source "ChessBase"]
[SourceQuality "1"]
[TimeControl "40/6000+30:3000+30"]

{[%evp 18,117,28,36,36,20,24,-24,-28,-33,-10,-22,-38,-35,-29,-53,-42,-50,-48,-57,-45,-46,-44,-48,-47,-58,-31,-39,-39,-31,-34,-40,-18,-19,-19,-18,-12,-16,0,-41,-35,-38,-35,-43,0,0,0,0,0,0,286,90,83,93,139,137,123,26,221,224,225,225,226,229,246,252,229,108,400,390,413,402,540,574,540,439,513,496,672,670,717,710,684,684,645,656,1560,1531,5691,6079,29977,29979,29979,29976,29976,29977,29979,29980,29980,29981,29980,29976]} 1. d4 {[%emt 0:10:05]} Nf6 {[%emt 0:10:04]} 2. c4 {[%emt 0:00:11]} g6 {[%emt 0:00:04]} 3. Nf3 {[%emt 0:00:07]} Bg7 {[%emt 0:00:04]} 4. g3 {[%emt 0:00:11]} O-O {[%emt 0:00:04]} 5. Bg2 {[%emt 0:00:11]} d6 {[%emt 0:00:07]} 6. Nc3 {[%emt 0:00:14]} Nc6 {[%emt 0:00:04]} 7. O-O {[%emt 0:00:57]} e5 {[%emt 0:00:03]} 8. dxe5 {[%emt 0:02:19]} dxe5 {[%emt 0:00:06] 8...dxe5 scores better than 8...Nxe5.} 9. Bg5 {[%emt 0:00:47]} Be6 {[%emt 0:01:44]} 10. Nd2 {[%emt 0:07:03][%cal Oc3d5] was the old line (10.Qc1).} h6 {[%emt 0:03:12] E62: King's Indian: Fianchetto: 6...c6 and Panno Variation (6...Nc6) without ...a6.} 11. Bxf6 {[%emt 0:03:28]} Bxf6 {[%emt 0:00:12]} 12. Nd5 {[%emt 0:00:37]} (12. Nb3 {is more appropriate.}) 12... Bg7 $11 {[%emt 0:08:15] Black has an edge.} 13. Nb3 {[%emt 0:09:16]} Bc8 $146 {[%emt 0:11:32]} ({Predecessor:} 13... Nd4 14. Nxd4 exd4 15. Qb3 c6 16. Nf4 Bc8 17. Rad1 Qb6 18. Be4 Qxb3 19. axb3 Re8 20. Bd3 a5 21. Ra1 Bf8 {½-½ Kovacs,G (2462)-Mutschnik,I (2430) BL2-Sued 1516 2015 (3.3)}) 14. Qd2 {[%emt 0:14:16]} Nd4 {[%emt 0:09:14]} 15. Nxd4 {[%emt 0:02:20]} exd4 {[%emt 0:00:07]} 16. Rac1 {[%emt 0:05:29]} c6 {[%emt 0:03:26]} 17. Nf4 {[%emt 0:02:13]} a5 {[%emt 0:02:06]} 18. b3 {[%emt 0:05:41]} Qe7 {[%emt 0:17:26]} 19. c5 {[%emt 0:01:53]} Re8 {[%emt 0:00:49]} 20. Rfe1 {[%emt 0:00:57]} Bf5 {[%emt 0:01:32]} 21. Nd3 {[%emt 0:04:46]} h5 {[%emt 0:09:42]} 22. h4 {[%emt 0:02:08]} Bf6 {[%emt 0:02:26]} 23. Nf4 {[%emt 0:01:53]} Kg7 {[%emt 0:05:38]} 24. Bf3 {[%emt 0:03:03]} Red8 {[%emt 0:04:22]} 25. Rc4 {[%emt 0:03:33]} Rd7 {[%emt 0:03:03]} 26. Rec1 {[%emt 0:04:18]} Kh7 {[%emt 0:02:41]} 27. Ra4 {[%emt 0:08:34]} Qd8 {[%emt 0:01:21]} 28. b4 {[%emt 0:05:56]} axb4 {[%emt 0:00:32]} 29. Rxa8 {[%emt 0:00:28]} Qxa8 {[%emt 0:00:07]} 30. Nxh5 $1 {[%emt 0:00:02]} gxh5 {[%emt 0:06:38]} 31. Qf4 $1 {[%emt 0:00:03]} Bg6 {[%emt 0:00:10]} 32. Qxf6 {[%emt 0:00:27][%cal Of3h5]} Qxa2 {[%emt 0:03:19]} 33. Bxh5 $1 {[%emt 0:01:04]} Qd5 $2 {[%emt 0:06:12][%mdl 8192] [#]} (33... Bxh5 $11 34. Qf5+ Bg6 35. Qxd7 b3) 34. Ra1 $1 {[%emt 0:04:58]} Qf5 $16 {[%emt 0:00:31]} (34... Bxh5 $2 35. Ra8 $18) 35. Bxg6+ {[%emt 0:01:15]} fxg6 {[%emt 0:00:27]} (35... Qxg6 $142 36. Qf3 Kg7) 36. Qxf5 {[%emt 0:00:26]} gxf5 {[%emt 0:00:00][%mdl 4096] Endgame [#] KR-KR} 37. Rb1 {[%emt 0:00:44]} (37. Ra4 $1 $16) 37... Rd5 $2 {[%emt 0:01:09]} (37... b5 $11 {and Black stays safe.}) 38. Rxb4 $18 {[%emt 0:00:12]} Rxc5 {[%emt 0:01:01]} 39. Rxb7+ {[%emt 0:00:46]} (39. Rxd4 $6 b5 $16) 39... Kg6 {[%emt 0:00:00]} 40. Rd7 {[%emt 0:00:21]} Rc1+ {[%emt 0:00:00]} 41. Kg2 {[%emt 0:50:09]} c5 {[%emt 0:21:50][%cal Bc6c5,Bc5c4,Bc4c3,Bc3c2][%mdl 32]} 42. Kf3 {[%emt 0:00:00]} (42. Rd6+ $18 {is more deadly.} Kf7 43. h5) 42... Rd1 $2 {[%emt 0:01:52][%mdl 8192]} (42... Kf6 $16 {is a better defense.}) 43. Rd6+ {[%emt 0:00:00]} Kg7 {[%emt 0:02:10]} 44. Rd5 {[%emt 0:00:00][%csl LRc5,LRf5][%cal Bd6d5,Bd5f5,Bf5c5,Bc5c6][%mdl 32]} c4 {[%emt 0:03:56]} 45. Rxf5 {[%emt 0:00:00]} c3 {[%emt 0:00:05] ...c2 would now be deadly.} 46. Rc5 {[%emt 0:00:00]} Rc1 {[%emt 0:09:16]} 47. Rc6 {[%emt 0:00:00]} Rb1 {[%emt 0:02:00]} 48. Ke4 {[%emt 0:00:00]} Rb2 {[%emt 0:00:42]} 49. Kxd4 {[%emt 0:00:00]} Rxe2 {[%emt 0:00:06]} 50. f4 {[%emt 0:00:00]} c2 {[%emt 0:01:22]} 51. g4 {[%emt 0:00:00][%cal Bg3g4,Bg4g5][%mdl 32] Hoping for h5.} Rg2 {[%emt 0:01:57] [#]} 52. g5 {[%emt 0:00:00]} ({Weaker is} 52. Rc7+ Kf6 $16) 52... Rg4 {[%emt 0:00:27]} 53. Ke5 {[%emt 0:00:00]} ({Not} 53. Rxc2 Rxf4+ 54. Ke5 Rxh4 $11) 53... Rxh4 {[%emt 0:00:23]} 54. Rxc2 {[%emt 0:00:00] White mates.} Rh1 {[%emt 0:00:09]} 55. Rc7+ {[%emt 0:00:00]} Kg6 {[%emt 0:00:08]} 56. Rc6+ {[%emt 0:00:00]} Kg7 {[%emt 0:00:06]} 57. Kf5 {[%emt 0:00:00]} Ra1 {[%emt 0:00:12]} 58. Rc7+ {[%emt 0:00:00]} Kg8 {[%emt 0:00:05]} 59. Re7 {[%emt 0:00:00] Weighted Error Value: White=0.19 (very precise) /Black=0.61  Loses game:     	---       	Black=3      Missed win:     	White=1     	---        Mistake:       	White=3     	Black=1      Inaccurate:     	White=1     	Black=4      OK:         	White=16    	Black=10     Best:        	White=6     	Black=1      Strong:       	White=3     	---} 1-0

[Event "4NCL Div 1 2024-25"]
[Site "England"]
[Date "2025.02.15"]
[Round "5.15"]
[White "Hng, Mei-En Emmanuelle"]
[Black "Hryshchenko, Kamila"]
[Result "1-0"]
[Annotator "TA"]
[ECO "B38"]
[WhiteElo "2135"]
[BlackElo "2138"]
[PlyCount "123"]
[EventDate "2024.11.23"]
[EventType "team-tourn"]
[EventCountry "ENG"]
[SourceTitle "playchess.com"]
[Source "ChessBase"]
[SourceQuality "1"]
[TimeControl "40/6000+30:3000+30"]

{[%evp 16,123,49,48,46,51,45,18,20,24,79,61,81,64,79,73,121,112,216,203,220,124,129,78,89,22,22,17,23,25,25,27,25,12,50,24,28,12,14,3,0,-16,-9,-19,-19,-56,26,-36,-15,-67,-6,-5,-16,-43,0,-28,14,16,71,27,97,112,107,0,114,118,104,16,18,-43,-43,-55,-34,-35,-31,-188,-31,-41,-42,-56,-62,-50,-15,-16,-14,-16,-16,-20,0,-8,0,-8,-8,-8,-8,-8,8,8,821,8,8,8,8,8,8,8,29979,29981,29981,29982]} 1. Nf3 {[%emt 0:10:07]} d6 {[%emt 0:10:14]} 2. c4 {[%emt 0:00:33]} g6 {[%emt 0:00:17]} 3. d4 {[%emt 0:00:21]} Bg7 {[%emt 0:00:09]} 4. Nc3 {[%emt 0:00:18]} Nf6 {[%emt 0:00:08]} 5. e4 {[%emt 0:00:09]} O-O {[%emt 0:00:06]} 6. h3 {[%emt 0:00:06]} c5 {[%emt 0:00:36]} 7. Be2 {[%emt 0:07:31]} cxd4 {[%emt 0:01:54]} 8. Nxd4 {[%emt 0:00:11]} Nc6 {[%emt 0:00:36]} 9. Be3 {[%emt 0:02:33]} Nd7 {[%emt 0:03:41] B38: Sicilian: Maroczy Bind with 5...Bg7 and 7...0-0.} 10. O-O {[%emt 0:04:13]} Nc5 {[%emt 0:00:34]} 11. Rc1 {[%emt 0:04:50]} Bd7 {[%emt 0:04:35] The position is equal.} 12. Qd2 {[%emt 0:06:21]} b6 $146 {[%emt 0:08:32]} (12... Qb6 $11) ({Predecessor:} 12... Rc8 13. b3 Qa5 14. Rfd1 Kh8 15. f4 Qc7 16. Nd5 Qd8 {0-1 Al Jabri,M (2154)-Minko,V (2381) Wch Blitz Riadh 2017 (14)}) 13. f4 {[%emt 0:13:13]} Rc8 {[%emt 0:05:17]} 14. b3 {[%emt 0:02:11]} Qe8 {[%emt 0:19:29]} 15. f5 {[%emt 0:25:45]} Ne5 {[%emt 0:14:06]} (15... Bxd4 $142 16. Bxd4 f6) 16. b4 $16 {[%emt 0:02:06]} Nb7 {[%emt 0:14:44]} (16... Na6 $16 {keeps fighting.}) 17. Nd5 $18 {[%emt 0:00:49]} f6 {[%emt 0:05:10]} 18. Nf4 {[%emt 0:07:15]} (18. Nb5 $18 Nc6 19. Kh1) 18... Nd8 $16 {[%emt 0:00:39]} 19. b5 {[%emt 0:01:42]} (19. Nb5 $142) 19... e6 {[%emt 0:02:17]} 20. fxe6 {[%emt 0:04:36]} (20. h4 $16) 20... Nxe6 $11 {[%emt 0:00:43]} 21. Ndxe6 {[%emt 0:04:03]} Bxe6 {[%emt 0:00:08]} 22. Nxe6 {[%emt 0:09:55]} Qxe6 {[%emt 0:00:06]} 23. Qd5 {[%emt 0:00:06]} Rfe8 {[%emt 0:01:04] Black is weak on the light squares} 24. Rfd1 {[%emt 0:00:25]} h5 {[%emt 0:03:49]} 25. a4 {[%emt 0:00:46][%csl Od6] White attacks a weakness} Nf7 {[%emt 0:05:12]} 26. Bf3 {[%emt 0:02:37]} f5 {[%emt 0:01:35][%cal Rf5e4]} 27. Qxe6 {[%emt 0:00:30]} Rxe6 {[%emt 0:00:04]} 28. e5 {[%emt 0:00:24]} Bxe5 {[%emt 0:03:19]} 29. Bd5 {[%emt 0:00:30]} Re7 {[%emt 0:00:18]} 30. Rd3 {[%emt 0:00:44]} Rec7 {[%emt 0:01:13]} (30... Kg7 $15) 31. Bd4 {[%emt 0:00:30]} (31. a5 $1 $11 bxa5 32. Rc2) 31... Kg7 {[%emt 0:00:25]} 32. Be3 {[%emt 0:00:30]} (32. a5 $11) 32... Nd8 {[%emt 0:02:08]} (32... Bf6 $15) 33. a5 $1 {[%emt 0:00:30]} bxa5 {[%emt 0:00:39]} 34. Rc2 {[%emt 0:00:04]} Re7 {[%emt 0:02:31]} 35. Ra2 {[%emt 0:00:10]} Nb7 {[%emt 0:00:05]} 36. Bxa7 {[%emt 0:00:24]} Bf4 {[%emt 0:01:06]} (36... Nc5 $11 37. Bxc5 dxc5) 37. Bd4+ {[%emt 0:00:31][%mdl 1024] White has strong compensation.} Kf8 {[%emt 0:00:22]} (37... Be5 $11 {keeps the balance.}) 38. Bf6 $16 {[%emt 0:01:18]} Rf7 {[%emt 0:00:41]} 39. Bd4 {[%emt 0:00:35] This pair of bishops is nice.} (39. Rf3 $16 Rxf6 40. Rxf4) 39... Rfc7 {[%emt 0:00:50]} (39... Re7 $1 $11) 40. g3 {[%emt 0:00:35] White is much more active.} Be5 {[%emt 0:00:27]} 41. Bb6 {[%emt 0:50:25]} (41. Be3 $16) 41... Rxc4 $1 $11 {[%emt 0:24:26]} 42. Bxb7 {[%emt 0:00:00]} (42. Bxc4 $11 Rxc4 43. Kg2 (43. Bxa5 Rc1+ 44. Kg2 Rb1 $11)) 42... Rb8 $15 {[%emt 0:00:22]} 43. Bf2 {[%emt 0:00:00]} Rxb7 {[%emt 0:00:15]} 44. Rxa5 {[%emt 0:00:00]} Rb4 {[%emt 0:05:00]} 45. Rd5 {[%emt 0:00:00] [#]} (45. Ra8+ $15 Kf7 46. b6) 45... Kf7 $2 {[%emt 0:02:26]} ({Better is} 45... Rb1+ $19 46. Kg2 Rb2) 46. b6 {[%emt 0:00:00]} Ke6 {[%emt 0:01:04]} 47. Rdb5 {[%emt 0:00:00]} Rxb5 {[%emt 0:00:22]} 48. Rxb5 {[%emt 0:00:00][%mdl 4096] Endgame KRB-KRB. Black is a pawn up.} d5 {[%emt 0:01:15]} 49. Kf1 {[%emt 0:00:00]} Bf6 {[%emt 0:05:10]} 50. Ke2 {[%emt 0:00:00]} g5 {[%emt 0:03:20]} 51. Ra5 {[%emt 0:00:00]} Kd6 {[%emt 0:07:49]} 52. Kd3 {[%emt 0:00:00]} Bd8 {[%emt 0:03:41]} 53. Be3 {[%emt 0:00:00]} Bxb6 {[%emt 0:00:55]} 54. Ra6 {[%emt 0:00:00]} Kc6 {[%emt 0:00:48] ...Kb5 would now be deadly.} 55. Bxg5 {[%emt 0:00:00]} Ra7 {[%emt 0:00:42]} 56. Rxb6+ $11 {[%emt 0:00:00] KRB-KR} ({Much worse is} 56. Rxa7 Bxa7 57. Ke2 Kc5 $17) 56... Kc7 $2 {[%emt 0:00:33][%mdl 8192]} (56... Kxb6 $11 57. Be3+ Kb7) 57. Bf4+ $2 {[%emt 0:00:00]} (57. Rh6 $18) 57... Kxb6 {[%emt 0:00:26]} 58. Be3+ {[%emt 0:00:00]} Kb7 {[%emt 0:00:04]} 59. Bxa7 {[%emt 0:00:00]} Kxa7 {[%emt 0:00:04]} 60. Kd4 {[%emt 0:00:00]} Kb6 $2 {[%emt 0:00:16][%mdl 8192]} (60... Kb8 $11) 61. Kxd5 {[%emt 0:00:00]} Kc7 {[%emt 0:01:09] [#]} 62. h4 $1 {[%emt 0:00:00] Weighted Error Value: White=0.39/Black=0.46  Loses game:     	---       	Black=2      Missed win:     	White=1     	---        Mistake:       	White=9     	Black=9      Inaccurate:     	White=6     	Black=4      OK:         	White=15    	Black=13     Best:        	White=5     	Black=2      Strong:       	White=1     	Black=1} 1-0

[Event "4NCL Div 1 2024-25"]
[Site "England"]
[Date "2025.02.15"]
[Round "5.16"]
[White "Kafka, Graeme"]
[Black "Zhao, George"]
[Result "0-1"]
[Annotator "ChessBase"]
[ECO "C02"]
[WhiteElo "2015"]
[BlackElo "2233"]
[PlyCount "92"]
[EventDate "2024.11.23"]
[EventType "team-tourn"]
[EventCountry "ENG"]
[SourceTitle "playchess.com"]
[Source "ChessBase"]
[SourceQuality "1"]
[TimeControl "40/6000+30:3000+30"]

1. e4 {[%emt 0:14:33]} e6 {[%emt 0:10:17]} 2. d4 {[%emt 0:00:16]} d5 {[%emt 0:00:12]} 3. e5 {[%emt 0:00:13]} c5 {[%emt 0:00:35]} 4. c3 {[%emt 0:00:17]} Nc6 {[%emt 0:00:26]} 5. Nf3 {[%emt 0:05:10]} Bd7 {[%emt 0:00:18]} 6. Be2 {[%emt 0:00:10]} f6 {[%emt 0:01:20]} 7. O-O {[%emt 0:01:13]} fxe5 {[%emt 0:00:34]} 8. Nxe5 {[%emt 0:01:40]} Nxe5 {[%emt 0:00:17]} 9. dxe5 {[%emt 0:00:05]} Qc7 {[%emt 0:00:32]} 10. Re1 {[%emt 0:02:20]} Ne7 {[%emt 0:02:12]} 11. Nd2 {[%emt 0:05:23]} Nc6 {[%emt 0:03:57]} 12. Nf3 {[%emt 0:03:43]} Be7 {[%emt 0:02:56]} 13. Bd2 {[%emt 0:11:19]} O-O {[%emt 0:03:56]} 14. Bd3 {[%emt 0:04:51]} c4 {[%emt 0:06:40]} 15. Bc2 {[%emt 0:03:46]} Rf7 {[%emt 0:06:45]} 16. Bg5 {[%emt 0:12:03]} Bc5 {[%emt 0:20:55]} 17. Be3 {[%emt 0:01:53]} Be7 {[%emt 0:02:37]} 18. Bg5 {[%emt 0:03:00]} h6 {[%emt 0:05:17]} 19. Bxe7 {[%emt 0:03:44]} Nxe7 {[%emt 0:00:37]} 20. Nd4 {[%emt 0:02:06]} Raf8 {[%emt 0:01:11]} 21. Re2 {[%emt 0:09:33]} Nc6 {[%emt 0:03:23]} 22. Nxc6 {[%emt 0:08:06]} Bxc6 {[%emt 0:00:21]} 23. Qd4 {[%emt 0:00:26]} Rf4 {[%emt 0:02:38]} 24. Qe3 {[%emt 0:07:10]} d4 {[%emt 0:08:39]} 25. cxd4 {[%emt 0:00:06]} Rg4 {[%emt 0:00:12]} 26. g3 {[%emt 0:04:55]} Qd7 {[%emt 0:00:08]} 27. Rae1 {[%emt 0:00:09]} Rf3 {[%emt 0:03:23]} 28. Qd2 {[%emt 0:01:36]} Rxd4 {[%emt 0:01:24]} 29. Qc1 {[%emt 0:02:27]} Rfd3 {[%emt 0:00:49]} 30. f3 {[%emt 0:01:23]} Rxf3 {[%emt 0:07:27]} 31. Be4 {[%emt 0:00:39]} Bxe4 {[%emt 0:05:20]} 32. Rxe4 {[%emt 0:00:08]} Rfd3 {[%emt 0:00:51]} 33. Qf4 {[%emt 0:00:27]} Rxe4 {[%emt 0:01:49]} 34. Rxe4 {[%emt 0:00:27]} Rd1+ {[%emt 0:00:31]} 35. Kg2 {[%emt 0:00:37]} Rd2+ {[%emt 0:00:56]} 36. Kh3 {[%emt 0:00:11]} Rxb2 {[%emt 0:00:32]} 37. Rxc4 {[%emt 0:00:06]} Qe8 {[%emt 0:00:23]} 38. Qg4 {[%emt 0:01:24]} Qf7 {[%emt 0:02:29]} 39. Rf4 {[%emt 0:01:04]} Qe7 {[%emt 0:02:04]} 40. Rc4 {[%emt 0:01:01]} Rf2 {[%emt 0:02:56]} 41. Rc8+ {[%emt 0:36:10]} Kh7 {[%emt 0:20:15]} 42. Qe4+ {[%emt 0:01:43]} Rf5 {[%emt 0:02:14]} 43. Qc2 {[%emt 0:06:20]} Qg5 {[%emt 0:01:01]} 44. Qd3 {[%emt 0:02:18]} Qg6 {[%emt 0:00:34]} 45. Qc2 {[%emt 0:02:55]} Qh5+ {[%emt 0:00:23]} 46. Kg2 {[%emt 0:00:09]} Qf3+ {[%emt 0:00:02]} 0-1

[Event "4NCL Div 1 2024-25"]
[Site "England"]
[Date "2025.02.15"]
[Round "5.17"]
[White "Bazakutsa, Svyatoslav"]
[Black "Gormally, Daniel W"]
[Result "1-0"]
[Annotator "TA"]
[ECO "A29"]
[WhiteElo "2486"]
[BlackElo "2424"]
[PlyCount "79"]
[EventDate "2024.11.23"]
[EventType "team-tourn"]
[EventCountry "ENG"]
[SourceTitle "playchess.com"]
[Source "ChessBase"]
[SourceQuality "1"]
[TimeControl "40/6000+30:3000+30"]

{[%evp 12,79,18,11,26,0,0,-12,-9,-6,0,-27,0,0,0,-1,0,0,4,1,0,0,0,0,0,0,0,0,0,0,10,16,14,28,89,92,93,96,89,95,87,120,94,85,186,179,188,75,70,45,38,0,0,0,0,0,0,0,0,0,0,0,0,0,229,0,106,100,107,93]} 1. c4 {[%emt 0:10:23]} e5 {[%emt 0:10:34]} 2. g3 {[%emt 0:00:07]} Nf6 {[%emt 0:00:20]} 3. Bg2 {[%emt 0:00:12]} Bc5 {[%emt 0:00:27]} 4. d3 {[%emt 0:00:59]} O-O {[%emt 0:00:51]} 5. Nf3 {[%emt 0:00:46]} Nc6 {[%emt 0:01:29]} 6. Nc3 {[%emt 0:02:00]} d6 {[%emt 0:03:11]} 7. O-O {[%emt 0:01:36]} Nd4 {[%emt 0:00:54] A29: English Opening: Four Knights Variation with 4 g3.} 8. e3 {[%emt 0:10:37]} Nxf3+ {[%emt 0:00:13]} 9. Bxf3 {[%emt 0:00:08]} c6 $146 {[%emt 0:01:31] The position is equal.} (9... Bh3 10. Re1 c6 11. d4 Bb6 12. b3 Ba5 13. Bd2 exd4 14. exd4 d5 15. cxd5 Bxc3 16. Bxc3 Nxd5 {1-0 Cmilyte,V (2525)-Movsesian,J (2260) BL 1112 (Women) 2011 (11.1)}) 10. d4 {[%emt 0:03:28]} Bb4 {[%emt 0:04:39]} 11. Bd2 {[%emt 0:27:04]} exd4 {[%emt 0:03:40]} 12. exd4 {[%emt 0:00:10]} Bxc3 {[%emt 0:00:44]} 13. Bxc3 {[%emt 0:07:21]} d5 {[%emt 0:02:40]} 14. c5 {[%emt 0:02:37]} Bf5 {[%emt 0:05:46]} 15. Bd2 {[%emt 0:02:37]} Qd7 {[%emt 0:02:25]} 16. Bf4 {[%emt 0:05:29]} Be4 {[%emt 0:06:35]} 17. Bg2 {[%emt 0:05:22] Repels Qh3} Bxg2 {[%emt 0:02:01]} 18. Kxg2 {[%emt 0:00:55]} Rfe8 {[%emt 0:01:45]} 19. f3 {[%emt 0:03:50]} Qf5 {[%emt 0:09:31]} 20. Qd2 {[%emt 0:02:56]} b6 {[%emt 0:07:02]} 21. Rac1 {[%emt 0:02:58]} Re6 {[%emt 0:00:50]} 22. Rfe1 {[%emt 0:00:38]} Rae8 {[%emt 0:01:41]} (22... bxc5 $11 23. Rxe6 (23. Rxc5 Nh5 $11) (23. dxc5 Rae8 $11) 23... Qxe6) 23. Re5 $16 {[%emt 0:05:24]} Qg6 {[%emt 0:10:24]} 24. Rxe6 {[%emt 0:01:56]} Rxe6 {[%emt 0:00:05]} 25. cxb6 {[%emt 0:00:07]} axb6 {[%emt 0:00:14]} 26. a4 {[%emt 0:00:10][%cal Ba2a4,Ba4a5][%mdl 32]} Nh5 {[%emt 0:07:56][%cal Oe6e2] ...Re2+! would now be deadly.} 27. Bc7 {[%emt 0:05:07][%cal Og2f2]} h6 {[%emt 0:06:11]} (27... Re7 $16 {keeps fighting.} 28. Be5 (28. Bxb6 Re2+ 29. Qxe2 Nf4+ 30. Kf2 Nxe2 $17) 28... Qe6) 28. Kf2 $1 $18 {[%emt 0:01:56]} (28. Bxb6 Re2+ 29. Qxe2 Nf4+ 30. Kf1 Nxe2 31. Kxe2 Qe6+ 32. Kd3 h5 $11) 28... Nf6 {[%emt 0:03:16][%cal Oc6c5]} 29. b4 {[%emt 0:01:12]} (29. Bxb6 $18 {and a5 would now be decisive} Nh7 30. h4) 29... Ne8 $16 {[%emt 0:06:35]} 30. Bb8 {[%emt 0:02:22][%cal Bc7b8,Bb8e5,Be5f4,Bf4e3][%mdl 32]} (30. Bxb6 Nd6 31. Qc2 (31. Rxc6 $2 Ne4+ 32. fxe4 Rxc6 $19) 31... Qg5 $15) 30... Qf6 {[%emt 0:02:08]} 31. a5 {[%emt 0:00:27]} Qd8 $1 $36 {[%emt 0:00:27][%mdl 2048] Black has good play.} 32. Be5 {[%emt 0:00:57]} f6 {[%emt 0:01:02] Prevents h4.} 33. Bf4 {[%emt 0:00:08]} g5 {[%emt 0:00:38]} 34. Be3 {[%emt 0:00:51][%cal Ob4b5]} bxa5 {[%emt 0:01:32]} 35. bxa5 {[%emt 0:00:26]} Nd6 {[%emt 0:00:11]} 36. a6 {[%emt 0:03:14][%cal Oc1a1]} (36. Rxc6 Ne4+ 37. fxe4 Rxc6 $17) 36... Nc4 {[%emt 0:03:44]} 37. Qb4 {[%emt 0:00:02][%cal Oa6a7]} c5 $2 {[%emt 0:02:40]} (37... Nxe3 $2 38. a7 Re8 39. Re1 $18) (37... Rxe3 $11 {and Black has nothing to worry.} 38. Rxc4 Qe8) 38. Qxc5 $2 {[%emt 0:01:00]} (38. dxc5 $18 Nxe3 39. a7) 38... Nxe3 {[%emt 0:00:06] [#]} (38... Kg7 $1 $11 {keeps the balance.}) 39. Qc8 $1 {[%emt 0:01:26]} ({Much worse is} 39. Re1 $6 Qe8 40. Qc3 Rxa6 $11) 39... Nd1+ {[%emt 0:00:20] [#]} 40. Kg1 $1 {[%emt 0:00:18] Weighted Error Value: White=0.24 (precise) /Black=0.22 (precise)   Loses game:     	---       	Black=1      Missed win:     	White=1     	---        Mistake:       	White=1     	Black=3      Inaccurate:     	White=3     	Black=1      OK:         	White=14    	Black=13     Best:        	White=2     	Black=2      Strong:       	White=2     	Black=1} 1-0

[Event "4NCL Div 1 2024-25"]
[Site "England"]
[Date "2025.02.15"]
[Round "5.18"]
[White "Ledger, Andrew J"]
[Black "Willow, Jonah B"]
[Result "1/2-1/2"]
[Annotator "ChessBase"]
[ECO "E94"]
[WhiteElo "2328"]
[BlackElo "2454"]
[PlyCount "119"]
[EventDate "2024.11.23"]
[EventType "team-tourn"]
[EventCountry "ENG"]
[SourceTitle "playchess.com"]
[Source "ChessBase"]
[SourceQuality "1"]
[TimeControl "40/6000+30:3000+30"]

1. d4 {[%emt 0:10:03]} Nf6 {[%emt 0:10:54]} 2. c4 {[%emt 0:00:10]} g6 {[%emt 0:00:41]} 3. Nc3 {[%emt 0:00:13]} Bg7 {[%emt 0:00:53]} 4. e4 {[%emt 0:00:08]} d6 {[%emt 0:00:04]} 5. Nf3 {[%emt 0:00:47]} O-O {[%emt 0:00:08]} 6. Be2 {[%emt 0:00:04]} e5 {[%emt 0:00:37]} 7. O-O {[%emt 0:00:07]} Bg4 {[%emt 0:01:31]} 8. dxe5 {[%emt 0:01:58]} Bxf3 {[%emt 0:00:37]} 9. exf6 {[%emt 0:00:06]} Bxe2 {[%emt 0:00:07]} 10. Qxe2 {[%emt 0:00:14]} Qxf6 {[%emt 0:00:05]} 11. Nd5 {[%emt 0:03:48]} Qd8 {[%emt 0:00:36]} 12. Qc2 {[%emt 0:06:52]} Re8 {[%emt 0:15:49]} 13. Be3 {[%emt 0:11:29]} c6 {[%emt 0:04:09]} 14. Nc3 {[%emt 0:01:24]} Nd7 {[%emt 0:11:29]} 15. Rad1 {[%emt 0:03:08]} Qe7 {[%emt 0:02:00]} 16. h3 {[%emt 0:04:36]} Nc5 {[%emt 0:10:48]} 17. Bd4 {[%emt 0:07:32]} Bxd4 {[%emt 0:15:23]} 18. Rxd4 {[%emt 0:00:06]} Ne6 {[%emt 0:00:04]} 19. Rd3 {[%emt 0:05:09]} Nf4 {[%emt 0:10:24]} 20. Rf3 {[%emt 0:03:03]} Qg5 {[%emt 0:00:27]} 21. Rg3 {[%emt 0:01:09]} Qc5 {[%emt 0:00:32]} 22. b3 {[%emt 0:10:33]} a6 {[%emt 0:01:50]} 23. Qd2 {[%emt 0:04:58]} Qe5 {[%emt 0:02:02]} 24. Rd1 {[%emt 0:02:45]} Rad8 {[%emt 0:01:11]} 25. Rf3 {[%emt 0:02:02]} Ne6 {[%emt 0:00:18]} 26. Re3 {[%emt 0:01:25]} Nc5 {[%emt 0:06:30]} 27. Qc2 {[%emt 0:04:54]} Ra8 {[%emt 0:02:31]} 28. Qd2 {[%emt 0:00:50]} Rad8 {[%emt 0:00:05]} 29. Qc2 {[%emt 0:00:04]} Ra8 {[%emt 0:03:16]} 30. Qd2 {[%emt 0:00:11]} Red8 {[%emt 0:00:30]} 31. b4 {[%emt 0:06:27]} Ne6 {[%emt 0:00:14]} 32. Nd5 {[%emt 0:06:28]} a5 {[%emt 0:03:24]} 33. b5 {[%emt 0:02:38]} Qg5 {[%emt 0:01:01]} 34. h4 {[%emt 0:02:44]} Qxh4 {[%emt 0:00:35]} 35. Rh3 {[%emt 0:00:18]} Qxh3 {[%emt 0:03:00]} 36. gxh3 {[%emt 0:01:42]} cxd5 {[%emt 0:00:01]} 37. cxd5 {[%emt 0:02:45]} Nc5 {[%emt 0:00:18]} 38. f3 {[%emt 0:01:38]} f6 {[%emt 0:03:13]} 39. h4 {[%emt 0:00:27]} b6 {[%emt 0:01:18]} 40. Qf4 {[%emt 0:01:23]} Kg7 {[%emt 0:01:01]} 41. h5 {[%emt 0:24:27]} Rd7 {[%emt 0:23:55]} 42. Kh1 {[%emt 0:03:03]} Re8 {[%emt 0:01:30]} 43. Rd2 {[%emt 0:06:56]} Re5 {[%emt 0:02:05]} 44. hxg6 {[%emt 0:01:11]} Rh5+ {[%emt 0:02:16]} 45. Rh2 {[%emt 0:02:04]} Rxh2+ {[%emt 0:00:06]} 46. Kxh2 {[%emt 0:00:06]} hxg6 {[%emt 0:00:03]} 47. Kg2 {[%emt 0:01:42]} Rd8 {[%emt 0:09:20]} 48. Qg3 {[%emt 0:01:07]} Rd7 {[%emt 0:01:21]} 49. Qg4 {[%emt 0:00:57]} Rc7 {[%emt 0:00:49]} 50. Qf4 {[%emt 0:05:09]} Rd7 {[%emt 0:00:45]} 51. Kf1 {[%emt 0:02:10]} Nd3 {[%emt 0:02:34]} 52. Qe3 {[%emt 0:00:22]} Nc5 {[%emt 0:00:04]} 53. Ke2 {[%emt 0:00:06]} Re7 {[%emt 0:01:17]} 54. Qf4 {[%emt 0:00:30]} Rd7 {[%emt 0:01:53]} 55. Kd2 {[%emt 0:01:02]} Rd8 {[%emt 0:00:10]} 56. Qg3 {[%emt 0:04:05]} Rd7 {[%emt 0:00:06]} 57. Kc2 {[%emt 0:00:21]} Rd8 {[%emt 0:02:34]} 58. Qg4 {[%emt 0:01:28]} Re8 {[%emt 0:02:02]} 59. Qg3 {[%emt 0:00:36]} Rd8 {[%emt 0:00:01]} 60. Qg4 {[%emt 0:00:42]} 1/2-1/2